[Event "Polgar Challenge 2021"]
[Site "Online"]
[Date "2021.04.04"]
[Round "3.10"]
[White "Gukesh D"]
[Black "Keymer, Vincent"]
[Result "1-0"]
[ECO "D41"]
[WhiteElo "2578"]
[BlackElo "2591"]
[Annotator "ChessBase"]
[PlyCount "163"]
[EventDate "2021.04.08"]
[EventType "tourn"]
[EventCountry "NET"]
[SourceTitle "playchess.com"]
[Source "ChessBase"]
[SourceQuality "1"]
[TimeControl "600+5"]

1. c4 {[%emt 0:00:00]} c6 {[%emt 0:00:00]} 2. e4 {[%emt 0:00:07]} d5 {[%emt 0:00:00]} 3. cxd5 {[%emt 0:00:02]} cxd5 {[%emt 0:00:00]} 4. exd5 {[%emt 0:00:01]} Nf6 {[%emt 0:00:02]} 5. Nc3 {[%emt 0:00:03]} Nxd5 {[%emt 0:00:08]} 6. Nf3 {[%emt 0:00:02]} Nc6 {[%emt 0:00:03]} 7. Bc4 {[%emt 0:00:22]} e6 {[%emt 0:00:24]} 8. O-O {[%emt 0:00:05]} Be7 {[%emt 0:00:02]} 9. d4 {[%emt 0:00:36]} O-O {[%emt 0:00:12]} 10. Qe2 {[%emt 0:00:50]} Nxc3 {[%emt 0:01:05]} 11. bxc3 {[%emt 0:00:02]} b6 {[%emt 0:00:07]} 12. Bd3 {[%emt 0:00:38]} Bb7 {[%emt 0:00:06]} 13. Qe4 {[%emt 0:01:31]} g6 {[%emt 0:00:03]} 14. Bh6 {[%emt 0:00:02]} Re8 {[%emt 0:00:03]} 15. Qg4 {[%emt 0:00:19]} Bf8 {[%emt 0:02:24]} 16. Bg5 {[%emt 0:00:31]} Qc8 {[%emt 0:00:31]} 17. Rac1 {[%emt 0:00:32]} Bg7 {[%emt 0:00:36]} 18. Qh4 {[%emt 0:00:06]} Qc7 {[%emt 0:01:05]} 19. Rfe1 {[%emt 0:01:23]} Ne7 {[%emt 0:00:56]} 20. Bf4 {[%emt 0:00:01]} Qd8 {[%emt 0:00:22]} 21. Qg3 {[%emt 0:03:16]} Nd5 {[%emt 0:00:33]} 22. Bg5 {[%emt 0:00:21]} Qc7 {[%emt 0:00:14]} 23. Qh4 {[%emt 0:00:38]} Rac8 {[%emt 0:00:04]} 24. c4 {[%emt 0:00:17]} Ne7 {[%emt 0:00:09]} 25. Ne5 {[%emt 0:00:06]} Nc6 {[%emt 0:00:30]} 26. Ng4 {[%emt 0:00:03]} f5 {[%emt 0:00:48]} 27. Nf6+ {[%emt 0:00:02]} Bxf6 {[%emt 0:00:01]} 28. Bxf6 {[%emt 0:00:00]} Qf7 {[%emt 0:00:01]} 29. d5 {[%emt 0:00:12]} Nb4 {[%emt 0:00:10]} 30. Bb1 {[%emt 0:00:05]} exd5 {[%emt 0:00:10]} 31. Rxe8+ {[%emt 0:00:02]} Qxe8 {[%emt 0:00:31]} 32. Qh6 {[%emt 0:00:09]} Qf8 {[%emt 0:00:13]} 33. Qh4 {[%emt 0:00:09]} Qe8 {[%emt 0:00:21]} 34. Qh6 {[%emt 0:00:05]} Qf7 {[%emt 0:00:07]} 35. Bc3 {[%emt 0:00:04]} Rxc4 {[%emt 0:00:12]} 36. a3 {[%emt 0:00:04]} Na6 {[%emt 0:00:35]} 37. Bd3 {[%emt 0:00:07]} Rc8 {[%emt 0:00:06]} 38. Bb2 {[%emt 0:00:04]} Nc5 {[%emt 0:00:02]} 39. Bf1 {[%emt 0:00:03]} Rd8 {[%emt 0:00:05]} 40. Qh4 {[%emt 0:00:02]} Re8 {[%emt 0:00:04]} 41. Qd4 {[%emt 0:00:02]} Kf8 {[%emt 0:00:06]} 42. Qh8+ {[%emt 0:00:02]} Ke7 {[%emt 0:00:02]} 43. Re1+ {[%emt 0:00:10]} Ne6 {[%emt 0:00:07]} 44. Qe5 {[%emt 0:00:07]} Kf8 {[%emt 0:00:08]} 45. Bb5 {[%emt 0:00:02]} Rc8 {[%emt 0:00:08]} 46. Qd6+ {[%emt 0:00:12]} Qe7 {[%emt 0:00:03]} 47. Rxe6 {[%emt 0:00:04]} Qxd6 {[%emt 0:00:02]} 48. Rxd6 {[%emt 0:00:01]} Rc2 {[%emt 0:00:05]} 49. Rd8+ {[%emt 0:00:04]} Ke7 {[%emt 0:00:02]} 50. Rd7+ {[%emt 0:00:01]} Ke6 {[%emt 0:00:00]} 51. Rxb7 {[%emt 0:00:01]} Rxb2 {[%emt 0:00:01]} 52. Bf1 {[%emt 0:00:01]} d4 {[%emt 0:00:13]} 53. Rxa7 {[%emt 0:00:04]} Rb1 {[%emt 0:00:02]} 54. Ra8 {[%emt 0:00:05]} Ke7 {[%emt 0:00:08]} 55. Ra4 {[%emt 0:00:02]} Rd1 {[%emt 0:00:05]} 56. g3 {[%emt 0:00:04]} d3 {[%emt 0:00:13]} 57. Rd4 {[%emt 0:00:03]} d2 {[%emt 0:00:07]} 58. Kg2 {[%emt 0:00:01]} Ke6 {[%emt 0:00:04]} 59. Be2 {[%emt 0:00:08]} Ra1 {[%emt 0:00:04]} 60. Rxd2 {[%emt 0:00:01]} Rxa3 {[%emt 0:00:01]} 61. Rb2 {[%emt 0:00:01]} f4 {[%emt 0:00:01]} 62. Rxb6+ {[%emt 0:00:01]} Ke5 {[%emt 0:00:05]} 63. Rb5+ {[%emt 0:00:01]} Kf6 {[%emt 0:00:00]} 64. gxf4 {[%emt 0:00:02]} Rc3 {[%emt 0:00:03]} 65. Bf3 {[%emt 0:00:02]} h6 {[%emt 0:00:05]} 66. Rb6+ {[%emt 0:00:08]} Kf5 {[%emt 0:00:03]} 67. Kg3 {[%emt 0:00:07]} h5 {[%emt 0:00:02]} 68. Rb5+ {[%emt 0:00:09]} Kf6 {[%emt 0:00:01]} 69. h4 {[%emt 0:00:03]} Ra3 {[%emt 0:00:08]} 70. f5 {[%emt 0:00:07]} gxf5 {[%emt 0:00:05]} 71. Rb6+ {[%emt 0:00:03]} Kg7 {[%emt 0:00:05]} 72. Kf4 {[%emt 0:00:18]} Ra2 {[%emt 0:00:29]} 73. Kg5 {[%emt 0:00:13]} Rxf2 {[%emt 0:00:01]} 74. Rb7+ {[%emt 0:00:01]} Kg8 {[%emt 0:00:05]} 75. Kg6 {[%emt 0:00:15]} Kf8 {[%emt 0:00:06]} 76. Kf6 {[%emt 0:00:01]} Ke8 {[%emt 0:00:01]} 77. Bxh5+ {[%emt 0:00:01]} Kd8 {[%emt 0:00:01]} 78. Bg6 {[%emt 0:00:03]} f4 {[%emt 0:00:02]} 79. h5 {[%emt 0:00:01]} f3 {[%emt 0:00:09]} 80. h6 {[%emt 0:00:03]} Rh2 {[%emt 0:00:04]} 81. Kg7 {[%emt 0:00:06]} f2 {[%emt 0:00:14]} 82. Rf7 {[%emt 0:00:01]} 1-0

[Event "Polgar Challenge 2021"]
[Site "Online"]
[Date "2021.04.04"]
[Round "4.1"]
[White "Zhu, Jiner"]
[Black "Keymer, Vincent"]
[Result "1/2-1/2"]
[ECO "C78"]
[WhiteElo "2459"]
[BlackElo "2591"]
[Annotator "ChessBase"]
[PlyCount "118"]
[EventDate "2021.04.08"]
[EventType "tourn"]
[EventCountry "NET"]
[SourceTitle "playchess.com"]
[Source "ChessBase"]
[SourceQuality "1"]
[TimeControl "600+5"]

1. e4 {[%emt 0:00:00]} e5 {[%emt 0:00:00]} 2. Nf3 {[%emt 0:00:00]} Nc6 {[%emt 0:00:00]} 3. Bb5 {[%emt 0:00:03]} a6 {[%emt 0:00:00]} 4. Ba4 {[%emt 0:00:01]} Nf6 {[%emt 0:00:00]} 5. O-O {[%emt 0:00:02]} Bc5 {[%emt 0:00:01]} 6. d3 {[%emt 0:00:09]} d6 {[%emt 0:00:13]} 7. h3 {[%emt 0:00:05]} h6 {[%emt 0:00:10]} 8. c3 {[%emt 0:00:03]} O-O {[%emt 0:00:43]} 9. Nbd2 {[%emt 0:00:14]} Ba7 {[%emt 0:00:26]} 10. Re1 {[%emt 0:00:10]} Ne7 {[%emt 0:00:21]} 11. Nf1 {[%emt 0:00:05]} Ng6 {[%emt 0:00:08]} 12. Ng3 {[%emt 0:00:23]} Nh7 {[%emt 0:00:42]} 13. d4 {[%emt 0:01:30]} Ng5 {[%emt 0:00:52]} 14. Be3 {[%emt 0:01:22]} Qf6 {[%emt 0:00:41]} 15. Nh2 {[%emt 0:00:55]} Nf4 {[%emt 0:01:05]} 16. dxe5 {[%emt 0:04:19]} dxe5 {[%emt 0:00:31]} 17. Bxa7 {[%emt 0:00:23]} Rxa7 {[%emt 0:00:02]} 18. Ng4 {[%emt 0:00:47]} Bxg4 {[%emt 0:02:01]} 19. Qxg4 {[%emt 0:00:02]} b5 {[%emt 0:00:21]} 20. Bb3 {[%emt 0:00:10]} c5 {[%emt 0:00:03]} 21. Bd5 {[%emt 0:00:31]} g6 {[%emt 0:00:43]} 22. h4 {[%emt 0:00:12]} Nh7 {[%emt 0:00:37]} 23. h5 {[%emt 0:00:09]} Kh8 {[%emt 0:00:05]} 24. Rad1 {[%emt 0:00:08]} Ng5 {[%emt 0:00:34]} 25. Kf1 {[%emt 0:00:06]} c4 {[%emt 0:00:27]} 26. Rd2 {[%emt 0:00:03]} Rc7 {[%emt 0:00:15]} 27. Re3 {[%emt 0:00:02]} Kh7 {[%emt 0:00:10]} 28. b3 {[%emt 0:00:02]} Rd8 {[%emt 0:00:07]} 29. bxc4 {[%emt 0:00:11]} Rxc4 {[%emt 0:00:11]} 30. Qd1 {[%emt 0:00:11]} Rcc8 {[%emt 0:00:07]} 31. Bb7 {[%emt 0:00:08]} Rb8 {[%emt 0:00:04]} 32. Bd5 {[%emt 0:00:02]} Rd6 {[%emt 0:00:17]} 33. hxg6+ {[%emt 0:00:10]} Nxg6 {[%emt 0:00:17]} 34. Nf5 {[%emt 0:00:01]} Rdd8 {[%emt 0:00:05]} 35. g3 {[%emt 0:00:01]} Ne7 {[%emt 0:00:15]} 36. Nxe7 {[%emt 0:00:01]} Qxe7 {[%emt 0:00:00]} 37. Qg4 {[%emt 0:00:01]} Qf6 {[%emt 0:00:11]} 38. Red3 {[%emt 0:00:01]} b4 {[%emt 0:00:08]} 39. cxb4 {[%emt 0:00:05]} Rxb4 {[%emt 0:00:06]} 40. Kg2 {[%emt 0:00:02]} a5 {[%emt 0:00:11]} 41. a3 {[%emt 0:00:01]} Rbb8 {[%emt 0:00:02]} 42. Bc4 {[%emt 0:00:04]} Rxd3 {[%emt 0:00:05]} 43. Bxd3 {[%emt 0:00:02]} Rd8 {[%emt 0:00:03]} 44. Rd1 {[%emt 0:00:03]} Ne6 {[%emt 0:00:06]} 45. Bc4 {[%emt 0:00:03]} Nd4 {[%emt 0:00:03]} 46. Qh5 {[%emt 0:00:03]} Kg7 {[%emt 0:00:08]} 47. Rh1 {[%emt 0:00:01]} Rd6 {[%emt 0:00:05]} 48. Rh4 {[%emt 0:00:02]} Qe7 {[%emt 0:00:06]} 49. Rh1 {[%emt 0:00:06]} Rg6 {[%emt 0:00:03]} 50. Rb1 {[%emt 0:00:06]} Rg5 {[%emt 0:00:10]} 51. Qd1 {[%emt 0:00:07]} Rg6 {[%emt 0:00:05]} 52. Bd5 {[%emt 0:00:01]} Qxa3 {[%emt 0:00:03]} 53. Rb7 {[%emt 0:00:03]} Ne6 {[%emt 0:00:05]} 54. Bxe6 {[%emt 0:00:06]} Rxe6 {[%emt 0:00:00]} 55. Qg4+ {[%emt 0:00:01]} Rg6 {[%emt 0:00:03]} 56. Qf5 {[%emt 0:00:02]} Rf6 {[%emt 0:00:00]} 57. Qg4+ {[%emt 0:00:03]} Rg6 {[%emt 0:00:19]} 58. Qf5 {[%emt 0:00:03]} Rf6 {[%emt 0:00:04]} 59. Qg4+ {[%emt 0:00:02]} Rg6 {[%emt 0:00:01]} 1/2-1/2

[Event "Polgar Challenge 2021"]
[Site "Online"]
[Date "2021.04.04"]
[Round "4.2"]
[White "Mendonca, Leon Luke"]
[Black "Gukesh D"]
[Result "1/2-1/2"]
[ECO "E54"]
[WhiteElo "2549"]
[BlackElo "2578"]
[Annotator "ChessBase"]
[PlyCount "147"]
[EventDate "2021.04.08"]
[EventType "tourn"]
[EventCountry "NET"]
[SourceTitle "playchess.com"]
[Source "ChessBase"]
[SourceQuality "1"]
[TimeControl "600+5"]

1. d4 {[%emt 0:00:00]} d5 {[%emt 0:00:00]} 2. Nf3 {[%emt 0:00:02]} Nf6 {[%emt 0:00:00]} 3. c4 {[%emt 0:00:03]} e6 {[%emt 0:00:06]} 4. Nc3 {[%emt 0:00:03]} c5 {[%emt 0:00:46]} 5. e3 {[%emt 0:00:39]} cxd4 {[%emt 0:00:35]} 6. exd4 {[%emt 0:00:02]} Bb4 {[%emt 0:00:03]} 7. Bd3 {[%emt 0:00:27]} dxc4 {[%emt 0:00:13]} 8. Bxc4 {[%emt 0:00:01]} O-O {[%emt 0:00:02]} 9. O-O {[%emt 0:00:14]} Nbd7 {[%emt 0:00:23]} 10. Bg5 {[%emt 0:00:21]} Bxc3 {[%emt 0:00:34]} 11. bxc3 {[%emt 0:00:02]} Qc7 {[%emt 0:00:12]} 12. Qe2 {[%emt 0:00:37]} b6 {[%emt 0:00:13]} 13. Rac1 {[%emt 0:00:49]} Bb7 {[%emt 0:00:13]} 14. Bd3 {[%emt 0:00:23]} Ng4 {[%emt 0:01:40]} 15. Be4 {[%emt 0:00:15]} Bxe4 {[%emt 0:00:05]} 16. Qxe4 {[%emt 0:00:00]} Ngf6 {[%emt 0:00:01]} 17. Qe2 {[%emt 0:00:15]} Qb7 {[%emt 0:00:37]} 18. c4 {[%emt 0:00:22]} Qe4 {[%emt 0:00:21]} 19. Qxe4 {[%emt 0:01:49]} Nxe4 {[%emt 0:00:01]} 20. Be3 {[%emt 0:00:06]} Rac8 {[%emt 0:00:07]} 21. a4 {[%emt 0:00:16]} Rc6 {[%emt 0:01:13]} 22. Rc2 {[%emt 0:00:23]} Rfc8 {[%emt 0:00:11]} 23. Rfc1 {[%emt 0:00:01]} Nd6 {[%emt 0:00:14]} 24. Nd2 {[%emt 0:02:25]} Nf6 {[%emt 0:00:02]} 25. Kf1 {[%emt 0:00:30]} Nd5 {[%emt 0:01:30]} 26. Ke2 {[%emt 0:00:08]} a5 {[%emt 0:00:02]} 27. c5 {[%emt 0:00:17]} Nf5 {[%emt 0:00:56]} 28. Nb3 {[%emt 0:00:13]} Kf8 {[%emt 0:00:46]} 29. Rc4 {[%emt 0:00:53]} Nd6 {[%emt 0:00:45]} 30. R4c2 {[%emt 0:00:05]} Nf5 {[%emt 0:00:10]} 31. Kd2 {[%emt 0:00:17]} Nb4 {[%emt 0:00:15]} 32. Rb2 {[%emt 0:00:21]} Nd5 {[%emt 0:00:14]} 33. cxb6 {[%emt 0:00:15]} Rxc1 {[%emt 0:00:01]} 34. Nxc1 {[%emt 0:00:00]} Nd6 {[%emt 0:00:01]} 35. Ke2 {[%emt 0:00:09]} Rb8 {[%emt 0:00:08]} 36. b7 {[%emt 0:00:07]} Rxb7 {[%emt 0:00:08]} 37. Rxb7 {[%emt 0:00:01]} Nxb7 {[%emt 0:00:00]} 38. Bd2 {[%emt 0:00:02]} Nb6 {[%emt 0:00:12]} 39. Nb3 {[%emt 0:00:02]} Nxa4 {[%emt 0:00:04]} 40. Nxa5 {[%emt 0:00:01]} Nd8 {[%emt 0:00:03]} 41. Bb4+ {[%emt 0:00:05]} Ke8 {[%emt 0:00:02]} 42. Kd3 {[%emt 0:00:03]} Nb6 {[%emt 0:00:01]} 43. Nc4 {[%emt 0:00:04]} Nd5 {[%emt 0:00:02]} 44. Bd2 {[%emt 0:00:03]} f6 {[%emt 0:00:02]} 45. g3 {[%emt 0:00:02]} Nc6 {[%emt 0:00:02]} 46. Nd6+ {[%emt 0:00:09]} Kd7 {[%emt 0:00:02]} 47. Ne4 {[%emt 0:00:00]} Ke7 {[%emt 0:00:06]} 48. Kc4 {[%emt 0:00:04]} Kf7 {[%emt 0:00:07]} 49. h3 {[%emt 0:00:11]} Nce7 {[%emt 0:00:03]} 50. Nd6+ {[%emt 0:00:02]} Kg6 {[%emt 0:00:02]} 51. Kd3 {[%emt 0:00:05]} h5 {[%emt 0:00:02]} 52. Ne4 {[%emt 0:00:10]} Nf5 {[%emt 0:00:10]} 53. Nc5 {[%emt 0:00:03]} Kf7 {[%emt 0:00:04]} 54. Ne4 {[%emt 0:00:01]} g5 {[%emt 0:00:13]} 55. Nc5 {[%emt 0:00:13]} h4 {[%emt 0:00:08]} 56. g4 {[%emt 0:00:02]} Nfe7 {[%emt 0:00:04]} 57. Ke4 {[%emt 0:00:03]} Ng6 {[%emt 0:00:15]} 58. Nd3 {[%emt 0:00:01]} Nde7 {[%emt 0:00:04]} 59. f4 {[%emt 0:00:02]} gxf4 {[%emt 0:00:05]} 60. Nxf4 {[%emt 0:00:03]} f5+ {[%emt 0:00:04]} 61. gxf5 {[%emt 0:00:06]} Nxf5 {[%emt 0:00:05]} 62. Nxg6 {[%emt 0:00:04]} Kxg6 {[%emt 0:00:01]} 63. Ke5 {[%emt 0:00:03]} Ng7 {[%emt 0:00:08]} 64. Be1 {[%emt 0:00:03]} Kg5 {[%emt 0:00:07]} 65. Bf2 {[%emt 0:00:02]} Nf5 {[%emt 0:00:05]} 66. Kxe6 {[%emt 0:00:21]} Kf4 {[%emt 0:00:05]} 67. d5 {[%emt 0:00:04]} Ke4 {[%emt 0:00:01]} 68. Bg1 {[%emt 0:00:19]} Ng7+ {[%emt 0:00:04]} 69. Kf6 {[%emt 0:00:02]} Kxd5 {[%emt 0:00:10]} 70. Bf2 {[%emt 0:00:14]} Ke4 {[%emt 0:00:06]} 71. Bxh4 {[%emt 0:00:02]} Nh5+ {[%emt 0:00:01]} 72. Kg5 {[%emt 0:00:08]} Nf4 {[%emt 0:00:00]} 73. Kg4 {[%emt 0:00:00]} Nxh3 {[%emt 0:00:01]} 74. Kxh3 {[%emt 0:00:00]} 1/2-1/2

[Event "Polgar Challenge 2021"]
[Site "Online"]
[Date "2021.04.04"]
[Round "4.3"]
[White "Abdumalik, Zhansaya"]
[Black "Bjerre, Jonas Buhl"]
[Result "0-1"]
[ECO "B90"]
[WhiteElo "2472"]
[BlackElo "2550"]
[Annotator "ChessBase"]
[PlyCount "92"]
[EventDate "2021.04.08"]
[EventType "tourn"]
[EventCountry "NET"]
[SourceTitle "playchess.com"]
[Source "ChessBase"]
[SourceQuality "1"]
[TimeControl "600+5"]

1. e4 {[%emt 0:00:00]} c5 {[%emt 0:00:00]} 2. Nf3 {[%emt 0:00:00]} d6 {[%emt 0:00:00]} 3. d4 {[%emt 0:00:00]} cxd4 {[%emt 0:00:00]} 4. Nxd4 {[%emt 0:00:00]} Nf6 {[%emt 0:00:00]} 5. Nc3 {[%emt 0:00:00]} a6 {[%emt 0:00:00]} 6. h3 {[%emt 0:00:00]} e5 {[%emt 0:00:00]} 7. Nde2 {[%emt 0:00:02]} h5 {[%emt 0:00:01]} 8. g3 {[%emt 0:00:01]} Be7 {[%emt 0:00:01]} 9. Bg2 {[%emt 0:00:01]} b5 {[%emt 0:00:01]} 10. O-O {[%emt 0:02:03]} Nbd7 {[%emt 0:00:23]} 11. a4 {[%emt 0:00:07]} b4 {[%emt 0:00:21]} 12. Nd5 {[%emt 0:00:01]} a5 {[%emt 0:01:10]} 13. Nxe7 {[%emt 0:01:11]} Qxe7 {[%emt 0:00:04]} 14. c3 {[%emt 0:00:03]} Nc5 {[%emt 0:00:56]} 15. Bg5 {[%emt 0:00:38]} Qe6 {[%emt 0:00:39]} 16. f4 {[%emt 0:00:04]} Ba6 {[%emt 0:01:12]} 17. cxb4 {[%emt 0:01:13]} axb4 {[%emt 0:00:11]} 18. Rc1 {[%emt 0:01:28]} Rc8 {[%emt 0:02:30]} 19. fxe5 {[%emt 0:01:17]} dxe5 {[%emt 0:00:04]} 20. Bxf6 {[%emt 0:00:16]} gxf6 {[%emt 0:00:03]} 21. Qd2 {[%emt 0:00:14]} O-O {[%emt 0:00:38]} 22. Qh6 {[%emt 0:00:36]} f5 {[%emt 0:01:09]} 23. Qxh5 {[%emt 0:00:39]} Qg6 {[%emt 0:00:35]} 24. Bf3 {[%emt 0:00:28]} Qxh5 {[%emt 0:00:55]} 25. Bxh5 {[%emt 0:00:01]} fxe4 {[%emt 0:00:06]} 26. Rf6 {[%emt 0:00:21]} Bxe2 {[%emt 0:00:16]} 27. Bxe2 {[%emt 0:00:01]} Nxa4 {[%emt 0:00:07]} 28. Rxc8 {[%emt 0:00:18]} Rxc8 {[%emt 0:00:02]} 29. b3 {[%emt 0:00:00]} Kg7 {[%emt 0:00:24]} 30. Rd6 {[%emt 0:00:27]} Rc1+ {[%emt 0:00:16]} 31. Kf2 {[%emt 0:00:05]} Nc5 {[%emt 0:00:04]} 32. Rb6 {[%emt 0:00:30]} Rc2 {[%emt 0:00:11]} 33. Kf1 {[%emt 0:00:11]} Nd3 {[%emt 0:00:07]} 34. Rd6 {[%emt 0:00:18]} Rc3 {[%emt 0:00:07]} 35. Bd1 {[%emt 0:00:05]} Nc5 {[%emt 0:00:08]} 36. Kf2 {[%emt 0:00:06]} Nxb3 {[%emt 0:00:04]} 37. Rd5 {[%emt 0:00:01]} Nc5 {[%emt 0:00:04]} 38. Be2 {[%emt 0:00:02]} f6 {[%emt 0:00:03]} 39. h4 {[%emt 0:00:07]} b3 {[%emt 0:00:01]} 40. Rd2 {[%emt 0:00:03]} Rc2 {[%emt 0:00:03]} 41. Rd6 {[%emt 0:00:04]} b2 {[%emt 0:00:06]} 42. Rb6 {[%emt 0:00:01]} Na4 {[%emt 0:00:02]} 43. Rb7+ {[%emt 0:00:01]} Kh6 {[%emt 0:00:03]} 44. g4 {[%emt 0:00:24]} Nc3 {[%emt 0:00:03]} 45. g5+ {[%emt 0:00:02]} fxg5 {[%emt 0:00:02]} 46. hxg5+ {[%emt 0:00:03]} Kxg5 {[%emt 0:00:04]} 0-1

[Event "Polgar Challenge 2021"]
[Site "Online"]
[Date "2021.04.04"]
[Round "4.4"]
[White "Khademalsharieh, Sarasadat"]
[Black "Shuvalova, Polina"]
[Result "0-1"]
[ECO "D29"]
[WhiteElo "2494"]
[BlackElo "2476"]
[Annotator "ChessBase"]
[PlyCount "92"]
[EventDate "2021.04.08"]
[EventType "tourn"]
[EventCountry "NET"]
[SourceTitle "playchess.com"]
[Source "ChessBase"]
[SourceQuality "1"]
[TimeControl "600+5"]

1. d4 {[%emt 0:00:00]} Nf6 {[%emt 0:00:00]} 2. c4 {[%emt 0:00:00]} e6 {[%emt 0:00:00]} 3. Nf3 {[%emt 0:00:00]} d5 {[%emt 0:00:00]} 4. Nc3 {[%emt 0:00:01]} dxc4 {[%emt 0:00:04]} 5. e3 {[%emt 0:00:14]} a6 {[%emt 0:00:13]} 6. Bxc4 {[%emt 0:00:02]} b5 {[%emt 0:00:16]} 7. Bb3 {[%emt 0:00:04]} Bb7 {[%emt 0:00:22]} 8. O-O {[%emt 0:00:06]} c5 {[%emt 0:00:02]} 9. Qe2 {[%emt 0:01:27]} Nbd7 {[%emt 0:00:08]} 10. Rd1 {[%emt 0:00:18]} Be7 {[%emt 0:01:05]} 11. d5 {[%emt 0:02:21]} exd5 {[%emt 0:00:19]} 12. Nxd5 {[%emt 0:00:02]} Nxd5 {[%emt 0:00:15]} 13. Bxd5 {[%emt 0:00:01]} Bxd5 {[%emt 0:00:11]} 14. Rxd5 {[%emt 0:00:02]} Qc7 {[%emt 0:00:32]} 15. e4 {[%emt 0:00:07]} O-O {[%emt 0:00:20]} 16. e5 {[%emt 0:00:49]} Nb6 {[%emt 0:00:40]} 17. Rd1 {[%emt 0:00:02]} Rad8 {[%emt 0:00:06]} 18. Bf4 {[%emt 0:00:19]} c4 {[%emt 0:00:11]} 19. h4 {[%emt 0:00:10]} h6 {[%emt 0:00:36]} 20. Nd4 {[%emt 0:00:56]} Qc8 {[%emt 0:01:30]} 21. Qe4 {[%emt 0:00:55]} Bc5 {[%emt 0:00:16]} 22. Nf5 {[%emt 0:01:03]} Qe6 {[%emt 0:00:08]} 23. h5 {[%emt 0:00:03]} Kh8 {[%emt 0:02:23]} 24. Bg3 {[%emt 0:00:16]} Rfe8 {[%emt 0:00:26]} 25. Qg4 {[%emt 0:00:24]} Bf8 {[%emt 0:00:04]} 26. Qf3 {[%emt 0:00:35]} b4 {[%emt 0:00:28]} 27. Nd6 {[%emt 0:00:37]} Bxd6 {[%emt 0:00:02]} 28. exd6 {[%emt 0:00:02]} Nd7 {[%emt 0:00:07]} 29. Qc6 {[%emt 0:00:28]} a5 {[%emt 0:00:12]} 30. Rac1 {[%emt 0:00:01]} Rc8 {[%emt 0:00:06]} 31. Qf3 {[%emt 0:00:18]} Rc5 {[%emt 0:00:30]} 32. Rd4 {[%emt 0:00:32]} Nf6 {[%emt 0:00:17]} 33. Rh4 {[%emt 0:00:19]} c3 {[%emt 0:00:12]} 34. bxc3 {[%emt 0:00:01]} bxc3 {[%emt 0:00:02]} 35. Kh2 {[%emt 0:00:01]} c2 {[%emt 0:00:05]} 36. Bf4 {[%emt 0:00:08]} Rd8 {[%emt 0:00:23]} 37. Qe3 {[%emt 0:00:10]} Ng4+ {[%emt 0:00:14]} 38. Rxg4 {[%emt 0:00:02]} Qxg4 {[%emt 0:00:10]} 39. Bg3 {[%emt 0:00:01]} Rxh5+ {[%emt 0:00:08]} 40. Kg1 {[%emt 0:00:01]} Rd5 {[%emt 0:00:02]} 41. Qe7 {[%emt 0:00:08]} Rd1+ {[%emt 0:00:01]} 42. Kh2 {[%emt 0:00:03]} Qh5+ {[%emt 0:00:02]} 43. Bh4 {[%emt 0:00:01]} R8xd6 {[%emt 0:00:04]} 44. Rxc2 {[%emt 0:00:03]} Re6 {[%emt 0:00:07]} 45. Rc5 {[%emt 0:00:17]} Rh1+ {[%emt 0:00:09]} 46. Kxh1 {[%emt 0:00:07]} Qd1+ {[%emt 0:00:00]} 0-1